bitfinex/quotes_ETHUSD_20220213
["timestamp","ask_amount","ask_price","bid_price","bid_amount"]
[1644718170029,0.01013084,2925.0,2924.4,0.489]
[1644718170229,0.00362421,2925.3,2924.4,0.489]
[1644718170429,1.3212,2925.4,2924.4,0.489]
[1644718170632,0.00362421,2925.3,2924.4,0.489]
[1644718170829,1.14242044,2925.1,2924.4,0.489]
[1644718171031,0.00362421,2925.0,2924.4,0.489]
[1644718171539,0.00362421,2925.0,2923.7,0.17209129]
[1644718171540,3.82244478,2925.0,2923.7,0.17209129]
[1644718171736,4.4784,2924.9,2923.7,1.17209129]
[1644718171935,4.0454242,2924.8,2923.7,0.17209129]
[1644718172533,1.10676616,2924.4,2923.7,0.17209129]
[1644718172785,1.10676616,2924.4,2923.3,0.30889129]
[1644718174382,1.10676616,2924.4,2923.3,0.60889129]
[1644718174782,1.10676616,2924.4,2923.7,0.01013338]
[1644718174985,0.171,2924.6,2923.7,0.01013338]
[1644718175185,0.171,2924.6,2923.8,0.17209129]
[1644718175384,0.171,2924.6,2923.8,0.19981466]
[1644718175986,0.171,2924.6,2923.8,0.02772337]
[1644718176186,0.94442525,2924.3,2923.8,0.02772337]
[1644718176436,0.1708,2924.2,2923.8,0.02772337]
[1644718176630,0.1708,2924.5,2923.8,0.02772337]
[1644718177236,0.13819997,2924.6,2923.8,0.02772337]
[1644718177840,0.17442421,2924.8,2924.0,0.85471]
[1644718178037,0.17442421,2924.8,2924.1,4.22023031]
[1644718178038,0.00362421,2924.8,2924.1,4.22023031]
[1644718178237,0.00362421,2924.8,2924.1,5.1631216]
[1644718178536,0.00362421,2924.8,2924.2,0.17209129]
[1644718178835,0.00362421,2924.8,2924.3,0.489]
[1644718179036,0.00362421,2924.8,2924.4,3.01196032]
[1644718179235,0.00362421,2924.8,2924.3,0.489]
[1644718179638,0.00362421,2924.8,2924.3,0.66109129]
[1644718180180,0.00362421,2924.8,2924.3,0.96109129]
[1644718180582,0.00362421,2924.8,2924.3,1.26109129]
[1644718180982,0.00362421,2924.8,2924.3,1.21109129]
[1644718182494,0.00362421,2924.8,2924.4,3.07417541]
[1644718182681,0.00362421,2924.8,2924.5,0.489]
[1644718182887,0.00978792,2925.1,2924.5,0.66109129]
[1644718183086,0.00362421,2924.9,2924.6,3.06466773]
[1644718183285,0.00956627,2925.1,2924.7,0.6598]
[1644718183484,0.00956627,2925.1,2924.7,0.9598]
[1644718184329,0.00362421,2925.3,2924.7,0.9598]
[1644718184533,0.00956679,2925.1,2924.7,4.08954586]
[1644718184930,0.00956679,2925.1,2924.7,0.9598]
[1644718185530,0.00362421,2925.3,2924.7,0.9598]
[1644718185731,0.00956679,2925.1,2924.7,0.9598]
[1644718186129,0.00956679,2925.1,2924.7,0.6598]
[1644718186530,0.00362421,2925.3,2924.7,0.789]
[1644718186730,0.00362421,2925.3,2924.7,0.489]
[1644718186931,0.00958174,2925.1,2924.7,0.489]
[1644718187785,0.00362421,2925.3,2924.7,0.489]
[1644718187981,0.00958174,2925.1,2924.7,0.489]
[1644718188183,0.00958174,2925.1,2924.8,3.03328138]
[1644718188381,0.00958174,2925.1,2924.9,0.489]
[1644718189083,0.00362421,2925.3,2924.9,0.489]
[1644718189282,0.00958195,2925.1,2924.9,0.489]
[1644718190182,0.00362421,2925.3,2924.9,0.487063]
[1644718190389,0.00958094,2925.1,2924.9,0.487063]
[1644718190583,1.45430652,2925.0,2924.9,0.487063]
[1644718191430,0.00362421,2925.3,2924.9,0.487063]
[1644718191631,0.00958084,2925.1,2924.9,0.487063]
[1644718192228,1.45429995,2925.0,2924.9,0.487063]
[1644718193234,0.00958084,2925.1,2924.9,0.487063]
[1644718193837,0.00362421,2925.3,2924.9,0.487063]
[1644718194038,0.00958101,2925.1,2924.9,0.487063]
[1644718194438,0.00958101,2925.1,2924.4,0.1708]
[1644718194639,1.45431078,2925.0,2924.6,0.489]
[1644718195277,0.00607147,2925.1,2924.6,0.489]
[1644718195477,2.36593188,2925.0,2924.6,0.489]
[1644718195682,0.91156297,2925.0,2924.6,0.489]
[1644718196077,0.00607147,2925.1,2924.6,0.489]
[1644718196281,0.00362421,2925.5,2924.6,0.489]
[1644718196479,0.00607147,2925.1,2924.6,0.489]
[1644718197480,0.00362421,2925.3,2924.6,0.489]
[1644718197679,0.01013542,2925.1,2924.6,0.489]
[1644718198686,0.00362421,2925.3,2924.6,0.789]
[1644718198940,0.01013542,2925.1,2924.6,0.489]
[1644718199132,1.45428443,2925.0,2924.6,0.489]
[1644718199933,1.20852421,2925.3,2924.6,0.489]
[1644718200132,0.01013532,2925.1,2924.6,0.489]
[1644718200333,0.01375953,2925.1,2924.6,0.489]
[1644718200539,0.01013532,2925.1,2924.6,0.489]
[1644718200735,1.45434595,2925.0,2924.7,0.01946152]
[1644718201134,0.1708,2924.9,2924.7,0.01946152]
[1644718201334,1.45434595,2924.8,2924.7,0.01946152]
[1644718201536,0.01013542,2925.1,2924.7,0.01946152]
[1644718201736,1.45443024,2925.0,2924.7,0.01946152]
[1644718202537,1.45443024,2924.9,2924.7,0.01946152]
[1644718202786,1.45443024,2924.8,2924.7,0.01946152]
[1644718202985,1.45443024,2925.0,2924.7,0.01946152]
[1644718203185,1.62523024,2925.0,2924.7,0.01946152]
[1644718203386,1.45443024,2924.9,2924.7,0.01946152]
[1644718203788,1.45443024,2924.8,2924.7,0.01946152]
[1644718203986,1.45443024,2925.0,2924.7,0.01946152]
[1644718204187,6.45443024,2925.0,2924.7,0.01946152]
[1644718204395,0.03892304,2924.6,2923.7,0.01014049]
[1644718204591,0.03892304,2924.6,2923.5,0.1708]
[1644718204592,1.45443024,2924.5,2923.5,0.1708]
[1644718204789,1.62523024,2924.5,2923.5,0.1708]
[1644718204989,1.45443024,2924.4,2923.7,0.01014049]
[1644718205791,1.45443024,2924.4,2923.5,0.34289129]
[1644718205992,0.91464891,2924.1,2923.5,0.34289129]
[1644718206196,1.3953,2924.3,2923.7,0.01013883]
[1644718206437,1.2243,2924.3,2923.7,0.01013883]
[1644718206728,1.2243,2924.3,2923.7,0.18223012]
[1644718206929,1.45468192,2924.2,2923.7,0.18223012]
[1644718207129,1.09686704,2924.1,2923.7,0.17209129]
[1644718207330,1.09686704,2924.1,2923.7,0.18223002]
[1644718207737,1.2243,2924.3,2923.7,0.18223002]
[1644718208236,1.2243,2924.3,2923.7,0.17209129]
[1644718208434,3.4,2924.1,2923.7,0.17209129]
[1644718208636,3.4,2924.1,2923.7,0.18223002]
[1644718209437,3.4,2924.1,2923.7,0.17209129]
[1644718209638,3.4,2924.1,2923.7,0.18203971]
[1644718210481,0.01366564,2924.0,2923.7,0.18203971]
[1644718210680,0.01366564,2924.0,2923.7,0.17209129]
[1644718210880,0.01366564,2924.0,2923.7,0.18203971]
[1644718211883,0.01366564,2924.0,2923.7,0.17209129]
[1644718212083,0.01366564,2924.0,2923.7,0.18203961]
[1644718213087,0.01366564,2924.0,2923.7,0.17209129]
[1644718213287,0.01366564,2924.0,2923.7,0.18165536]
[1644718214332,0.01366564,2924.0,2923.7,0.17209129]
[1644718214535,3.70700841,2924.0,2923.7,0.00956407]
[1644718214734,3.87800841,2924.0,2923.7,0.00956407]
[1644718215138,3.87800841,2924.0,2923.7,6.407e-05]
[1644718215139,1.45486971,2923.9,2923.7,6.407e-05]
[1644718215336,3.67979102,2923.8,2923.7,6.407e-05]
[1644718215534,5.12348551,2923.8,2922.8,0.17385461]
[1644718215737,0.85763648,2923.2,2922.8,0.17385461]
[1644718215934,0.85763648,2923.2,2922.8,0.171]
[1644718216741,1.2158,2923.5,2922.8,0.171]
[1644718216934,1.2158,2923.5,2922.9,0.00353063]
[1644718217533,1.2158,2923.5,2922.9,0.17562192]
[1644718217786,2.13349141,2923.5,2922.9,0.17562192]
[1644718217985,2.13349141,2923.5,2922.9,0.17209129]
[1644718218187,2.13349141,2923.5,2923.1,0.00353038]
[1644718219186,2.13349141,2923.5,2922.9,0.17209129]
[1644718219392,2.13349141,2923.5,2923.2,0.00979342]
[1644718220388,2.13349141,2923.5,2922.9,0.17209129]
[1644718220389,0.01353337,2923.4,2922.9,0.17209129]
[1644718220589,0.01353337,2923.4,2923.2,0.00979336]
[1644718221451,0.01353337,2923.4,2922.9,0.17209129]
[1644718221643,0.01353337,2923.4,2923.2,0.00979342]
[1644718222643,0.01353337,2923.4,2922.9,0.17209129]
[1644718222846,0.01353337,2923.4,2923.2,0.00979342]
[1644718223850,0.01353337,2923.4,2922.9,0.1749459]
[1644718224249,0.01353337,2923.4,2923.2,0.00957544]
[1644718225048,0.01353337,2923.4,2922.9,0.17209129]
[1644718227398,0.18453337,2923.4,2922.7,0.00285461]
[1644718227596,0.18453337,2923.4,2922.5,0.1749459]
[1644718227799,0.18453337,2923.4,2922.6,0.00285461]
[1644718227998,0.18453337,2923.4,2923.0,0.0101343]
[1644718228298,0.18453337,2923.4,2923.0,3.43e-05]
[1644718228501,5.0,2923.2,2923.0,3.43e-05]
[1644718228800,5.0,2923.2,2922.6,0.00285461]
[1644718229040,0.67353337,2923.4,2922.6,0.00285461]
[1644718229238,4.07353337,2923.4,2922.6,0.00285461]
[1644718229442,3.58453337,2923.4,2922.6,0.00285461]
[1644718229638,0.87172135,2922.8,2922.6,0.00285461]
[1644718229842,0.87172135,2922.8,2922.2,0.00285461]
[1644718230439,0.87172135,2922.8,2922.2,0.1749459]
[1644718230639,3.7,2922.7,2922.2,0.1249459]
[1644718232540,3.7,2922.7,2922.3,0.01013527]
[1644718232987,3.7,2922.7,2922.4,0.17209129]
[1644718233792,3.7,2922.7,2922.4,0.18222642]
[1644718234791,3.7,2922.7,2922.4,0.17209129]
[1644718234998,3.7,2922.7,2922.4,0.18222642]
[1644718235391,0.01335692,2922.6,2922.4,0.18222642]
[1644718235992,0.01335692,2922.6,2922.4,0.17209129]
[1644718236292,0.01335692,2922.6,2922.4,0.18222649]
[1644718237135,0.01335692,2922.6,2922.4,0.17209129]
[1644718237539,0.01335692,2922.6,2922.4,0.18222649]
[1644718238341,0.01335692,2922.6,2922.4,0.17209129]
[1644718238540,0.01335692,2922.6,2922.4,0.18222649]
[1644718239141,0.01335692,2922.6,2922.4,0.0101352]
[1644718239542,0.01335692,2922.6,2922.0,0.34309129]
[1644718239943,0.01335692,2922.6,2922.4,0.0101352]
[1644718240781,0.01335692,2922.6,2922.0,0.17209129]
[1644718241184,0.01335692,2922.6,2921.6,0.421]
[1644718241185,0.01335692,2922.6,2922.4,0.0101352]
[1644718241392,3.41335692,2922.6,2922.4,0.0101352]
[1644718241983,3.41335692,2922.6,2921.6,0.42209129]
[1644718242184,1.13795715,2921.8,2921.6,0.17209129]
[1644718242385,3.41335692,2922.6,2921.6,0.17209129]
[1644718243591,1.01574217,2922.5,2922.0,0.01013576]
[1644718244236,6.01574217,2922.5,2922.0,0.01013576]
[1644718244438,6.01574217,2922.5,2921.2,0.44421057]
[1644718244637,6.01574217,2922.5,2921.2,0.17209129]
[1644718244638,0.1711,2922.4,2921.2,0.17209129]
[1644718244837,0.1711,2922.4,2922.1,0.01013555]
[1644718244838,1.62668109,2922.4,2922.1,0.01013555]
[1644718245036,1.1792,2922.3,2922.1,0.01013555]
[1644718245237,0.01433128,2921.8,2921.2,0.17209129]
[1644718246137,1.09611459,2921.6,2921.2,0.17209129]
[1644718246536,1.09611459,2921.6,2921.2,0.17492591]
[1644718246935,0.01433128,2921.8,2921.2,0.17492591]
[1644718247138,0.01433128,2921.8,2921.3,0.17393462]
[1644718247538,0.01433128,2921.8,2921.3,0.00283462]
[1644718248491,0.01433128,2921.8,2921.4,0.00948699]
[1644718249296,0.01433128,2921.8,2921.3,0.00283462]
[1644718249695,0.01433128,2921.8,2921.5,0.00948692]
[1644718250494,0.01433128,2921.8,2921.3,0.00283462]
[1644718250995,0.01433128,2921.8,2921.5,0.00953012]
[1644718251841,0.01433128,2921.8,2921.3,0.00283462]
[1644718251842,3.41433128,2921.8,2921.3,0.00283462]
[1644718252043,3.41433128,2921.8,2921.5,0.00953012]
[1644718252947,3.41433128,2921.8,2921.3,0.00283462]
[1644718253147,3.41433128,2921.8,2921.5,0.00953012]
[1644718254150,3.41433128,2921.8,2921.3,0.00283462]
[1644718254550,3.41433128,2921.8,2921.5,0.00953012]
[1644718255386,3.41433128,2921.8,2921.3,0.00283462]
[1644718255586,3.41433128,2921.8,2921.5,0.00952723]
[1644718256589,3.41433128,2921.8,2921.3,0.00283462]
[1644718256789,3.41433128,2921.8,2921.5,0.00952723]
[1644718257691,3.41433128,2921.8,2921.6,0.6601]
[1644718258093,3.41433128,2921.8,2921.7,0.17209129]
[1644718258291,3.41433128,2921.8,2921.7,0.66109129]
[1644718260237,3.41433128,2921.8,2921.7,0.489]
[1644718263489,3.41433128,2921.8,2921.7,2.489]
[1644718266838,3.41433128,2921.8,2921.7,2.0]
[1644718268138,3.41303305,2921.8,2921.7,2.0]
[1644718270584,3.41637861,2921.8,2921.7,2.0]
[1644718276042,3.422657,2921.8,2921.7,2.0]
[1644718277541,3.372657,2921.8,2921.7,2.0]
[1644718278387,3.322657,2921.8,2921.7,2.0]
[1644718280591,3.35097824,2921.8,2921.7,2.0]
[1644718282347,3.35097824,2921.8,2921.7,2.1711]
[1644718283149,3.35097824,2921.8,2921.7,2.0]
[1644718286091,3.322657,2921.8,2921.7,2.0]
[1644718292337,3.322657,2921.8,2921.7,2.489]
[1644718300785,3.322657,2921.8,2921.7,2.50806782]
[1644718302990,3.322657,2921.8,2921.7,2.01906782]
[1644718303393,3.32125962,2921.8,2921.7,2.01906782]
[1644718305339,3.32125962,2921.8,2921.7,2.0]
[1644718317790,8.38124175,2921.8,2921.7,2.0]
[1644718318392,4.77701738,2921.8,2921.7,2.0]
[1644718326937,4.7770597,2921.8,2921.7,2.0]
[1644718327737,4.7755054,2921.8,2921.7,2.0]
[1644718332592,4.77558734,2921.8,2921.7,2.0]
[1644718334241,4.77558734,2921.8,2921.7,0.44698101]
[1644718334443,4.77558734,2921.8,2921.7,0.44617423]
[1644718334643,9.77558734,2921.8,2921.7,0.44617423]
[1644718334846,8.37516361,2921.8,2921.6,0.00952186]
[1644718335043,1.45588202,2921.7,2921.6,0.00952186]
[1644718335244,5.02521011,2921.7,2921.6,0.00952186]
[1644718335843,1.45588202,2921.7,2920.8,0.00283462]
[1644718336044,1.45588202,2921.7,2921.5,0.009522]
[1644718337044,1.45588202,2921.7,2920.8,0.00283462]
[1644718337345,1.09939546,2921.6,2921.5,0.00952207]
[1644718337545,2.55527748,2921.6,2921.5,0.00952207]
[1644718338295,2.55527748,2921.6,2920.8,0.00283462]
[1644718338494,1.45588202,2921.5,2921.4,0.00952215]
[1644718339494,1.45588202,2921.5,2920.8,0.00283462]
[1644718339695,1.45588202,2921.5,2921.3,0.00952229]
[1644718340797,1.45588202,2921.5,2920.8,0.00283462]
[1644718340997,1.45588202,2921.5,2921.3,0.00952236]
[1644718341941,1.45588202,2921.5,2920.8,0.00283462]
[1644718342138,1.45588202,2921.5,2921.3,0.00952237]
[1644718342541,6.63680532,2921.8,2921.3,0.00952237]
[1644718343146,6.63680532,2921.8,2921.2,0.00283462]
[1644718343345,1.45594353,2921.7,2921.4,0.00952216]
[1644718343549,2.65063319,2921.7,2921.4,0.00952216]
[1644718343749,1.19468966,2921.7,2921.4,0.00952216]
[1644718344445,1.19468966,2921.7,2921.2,0.00283462]
[1644718344644,1.19468966,2921.7,2921.4,0.00952216]
[1644718345388,1.19468966,2921.7,2921.2,0.00283462]
[1644718345788,1.19468966,2921.7,2921.4,0.00952215]
[1644718346589,1.19468966,2921.7,2921.3,0.1711]
[1644718346989,1.19468966,2921.7,2921.4,0.00952215]
[1644718347189,1.45597378,2921.6,2921.4,0.00952215]
[1644718347392,1.19468966,2921.7,2921.4,0.00952215]
[1644718347590,2.15,2921.6,2921.3,0.13062215]
[1644718348499,2.15,2921.6,2920.0,0.17874284]
[1644718348500,14.32722001,2921.5,2920.0,0.17874284]
[1644718348700,5.0,2921.1,2920.0,0.17874284]
[1644718348950,4.90342001,2921.0,2919.6,0.25]
[1644718349141,5.0,2920.7,2919.6,0.25]
[1644718349346,4.95612001,2920.9,2919.6,0.25]
[1644718349347,0.1711,2920.6,2919.6,0.25]
[1644718349541,1.00619114,2919.8,2919.6,0.25]
[1644718349741,1.00619114,2919.8,2919.1,3.7301]
[1644718349941,1.1408,2920.5,2919.1,0.489]
[1644718350144,1.62768858,2920.4,2919.1,0.489]
[1644718350343,1.1408,2920.5,2919.2,0.1711]
[1644718350545,1.45658452,2920.4,2919.2,0.1711]
[1644718351346,3.9775,2920.7,2919.3,1.3451]
[1644718351545,3.8064,2920.7,2919.4,4.60804514]
[1644718351744,3.8064,2920.7,2919.7,0.00952457]
[1644718351949,3.8064,2920.7,2919.8,0.6601]
[1644718352143,3.8064,2920.7,2919.8,0.489]
[1644718352343,0.85986327,2920.5,2919.8,0.489]
[1644718352993,0.85986327,2920.5,2920.0,0.00965879]
[1644718353993,0.85986327,2920.5,2919.9,0.1711]
[1644718354194,0.85986327,2920.5,2920.1,0.00965865]
[1644718354995,7.2064,2920.7,2919.9,0.1711]
[1644718354996,3.4,2920.7,2919.9,0.1711]
[1644718355297,3.4,2920.7,2920.0,0.489]
[1644718355497,3.4,2920.7,2920.1,0.1711]
[1644718355694,3.4,2920.7,2920.2,0.489]
[1644718355894,3.4,2920.7,2920.3,0.1711]
[1644718356095,3.4,2920.7,2920.4,0.489]
[1644718356538,3.4,2920.7,2920.4,0.49851329]
[1644718357535,3.4,2920.7,2920.4,0.489]
[1644718357740,3.4,2920.7,2920.4,0.49851322]
[1644718358743,3.4,2920.7,2920.4,0.489]
[1644718359043,3.4,2920.7,2920.4,0.49851322]
[1644718359841,3.4,2920.7,2920.4,0.489]
[1644718360289,3.4,2920.7,2920.4,0.49863005]
[1644718361090,3.4,2920.7,2920.4,0.489]
[1644718361289,3.4,2920.7,2920.4,0.49863005]
[1644718362293,3.4,2920.7,2920.4,0.489]
[1644718362489,3.4,2920.7,2920.4,0.49863005]
[1644718363492,3.4,2920.7,2920.4,0.489]
[1644718363692,3.4,2920.7,2920.4,0.50131677]
[1644718364741,3.4,2920.7,2920.4,0.49180175]
[1644718364947,3.4,2920.7,2920.4,0.50131677]
[1644718365240,3.4,2920.7,2920.4,0.01231677]
[1644718365442,3.4,2920.7,2920.4,0.00951502]
[1644718365941,3.4,2920.7,2920.2,0.00280175]
[1644718366141,3.4,2920.7,2920.4,0.00951502]
[1644718367045,3.4,2920.7,2920.2,0.00280175]
[1644718367447,3.4,2920.7,2920.4,0.00952271]
[1644718368291,3.4,2920.7,2920.2,0.00280175]
[1644718368492,3.4,2920.7,2920.4,0.00952271]
[1644718368693,3.4,2920.7,2920.4,0.01232446]
[1644718368893,0.1711,2920.6,2920.4,0.00952271]
[1644718369493,0.1711,2920.6,2919.5,0.00280175]
[1644718369693,3.4251,2920.6,2920.4,0.00952278]
[1644718369892,0.86450941,2920.5,2920.4,0.00952278]
[1644718370097,1.03560941,2920.5,2920.4,0.00952278]
[1644718370794,1.03560941,2920.5,2919.5,0.00280175]
[1644718370994,1.03560941,2920.5,2920.3,0.00952233]
[1644718371847,1.03560941,2920.5,2919.6,0.00280175]
[1644718372047,1.03435457,2920.5,2919.6,0.00280175]
[1644718372248,0.1711,2920.5,2920.3,0.0095224]
[1644718373050,0.1711,2920.5,2919.6,0.00280175]
[1644718373250,0.1711,2920.5,2920.3,0.0095224]
[1644718374251,0.1711,2920.5,2919.6,0.00280175]
[1644718374452,3.254,2920.6,2919.6,0.00280175]
[1644718374651,3.254,2920.6,2920.3,0.00952244]
[1644718375487,3.254,2920.6,2919.6,0.00280175]
[1644718375688,3.254,2920.6,2920.3,0.00952237]
[1644718376688,3.254,2920.6,2919.5,0.17390175]
[1644718376890,3.254,2920.6,2920.3,0.00952237]
[1644718377896,3.254,2920.6,2919.6,0.00280175]
[1644718378093,3.254,2920.6,2920.3,0.00952239]
[1644718379138,3.254,2920.6,2919.6,0.00280175]
[1644718379338,3.254,2920.6,2920.3,0.00952239]
[1644718380341,3.254,2920.6,2919.6,0.00280175]
[1644718380342,3.254,2920.6,2919.7,0.1711]
[1644718380543,3.254,2920.6,2920.3,0.00952239]
[1644718380939,6.78767656,2920.6,2920.3,0.00952239]
[1644718381140,3.254,2920.6,2920.3,0.00952239]
[1644718381441,3.254,2920.6,2919.6,0.00280175]
[1644718381740,3.254,2920.6,2920.3,0.00952239]
[1644718382792,3.254,2920.6,2919.6,0.00280175]
[1644718383096,3.254,2920.6,2920.3,0.00952239]
[1644718383891,3.254,2920.6,2919.6,0.00280175]
[1644718384091,3.254,2920.6,2920.3,0.00952239]
[1644718385192,3.254,2920.6,2919.7,0.1711]
[1644718385397,3.254,2920.6,2920.3,0.00952239]
[1644718387537,3.254,2920.6,2919.6,0.00280175]
[1644718387742,3.254,2920.6,2920.3,0.00952239]
[1644718388743,3.254,2920.6,2919.6,0.00280175]
[1644718388941,3.254,2920.6,2920.3,0.00952239]
[1644718389943,3.254,2920.6,2919.8,0.00280175]
[1644718390186,3.254,2920.6,2920.3,0.00952239]
[1644718391191,3.254,2920.6,2919.8,0.00280175]
[1644718391392,3.254,2920.6,2920.3,0.00952239]
[1644718391694,1.45132147,2920.5,2920.3,0.00952239]
[1644718391892,3.254,2920.6,2920.3,0.00952239]
[1644718392292,3.254,2920.6,2919.7,0.00280175]
[1644718392493,3.254,2920.6,2920.3,0.00952239]
[1644718393501,3.254,2920.6,2919.7,0.00280175]
[1644718393693,3.254,2920.6,2920.3,0.00952239]
[1644718394745,3.4,2920.7,2920.4,0.1711]
[1644718394946,3.4,2920.7,2920.4,0.489]
[1644718395146,3.4,2920.7,2920.5,3.97235899]
[1644718395342,3.4,2920.7,2920.6,1.489]
[1644718395540,3.4,2920.7,2920.6,5.39491552]
[1644718395740,3.4,2920.7,2920.6,5.69491552]
[1644718396443,3.4,2920.7,2920.6,6.72885162]
[1644718397895,3.31430525,2920.7,2920.6,7.58449162]
[1644718398694,2.89214293,2920.7,2920.6,7.58449162]
[1644718399797,2.89214293,2920.7,2920.6,27.50449162]
[1644718399996,2.89214293,2920.7,2920.6,7.58449162]
[1644718400697,2.89214293,2920.7,2920.6,12.58449162]
[1644718400900,2.31029401,2920.7,2920.6,38.78958291]
[1644718401103,2.31029401,2920.7,2920.6,13.86958291]
[1644718402544,2.31029401,2920.7,2920.6,18.86958291]
[1644718403149,2.31029401,2920.7,2920.6,13.86958291]
[1644718405788,2.31029401,2920.7,2920.6,13.69749162]
[1644718405990,2.31029401,2920.7,2920.6,15.02639162]
[1644718413092,2.31029401,2920.7,2920.6,15.19749162]
[1644718413492,2.31029401,2920.7,2920.6,16.30729888]
[1644718413895,1.78929401,2920.7,2920.6,16.30729888]
[1644718414093,1.78929401,2920.7,2920.6,16.13619888]
[1644718414299,1.78929401,2920.7,2920.6,15.02639162]
[1644718420791,1.78929401,2920.7,2920.6,11.2915761]
[1644718423196,1.27737375,2920.7,2920.6,11.2915761]
[1644718423398,1.27737375,2920.7,2920.6,11.46366739]
[1644718425243,1.27737375,2920.7,2920.6,31.55476739]
[1644718425643,1.27737375,2920.7,2920.6,31.38366739]
[1644718428796,1.27737375,2920.7,2920.6,11.46366739]
[1644718445504,1.27601554,2920.7,2920.6,11.46366739]
[1644718446441,1.27601554,2920.7,2920.6,13.77001834]
[1644718446643,1.27601554,2920.7,2920.6,11.46366739]
[1644718450396,1.27601554,2920.7,2920.6,10.60802739]
[1644718452596,1.27601554,2920.7,2920.6,13.15421167]
[1644718453206,1.27601554,2920.7,2920.6,10.60802739]
[1644718453601,1.27601554,2920.7,2920.6,13.30046167]
[1644718454048,1.27601554,2920.7,2920.6,10.60802739]
[1644718455049,1.27601554,2920.7,2920.6,14.15610167]
[1644718457054,1.27601554,2920.7,2920.6,11.46366739]
[1644718457252,1.27601554,2920.7,2920.6,10.60802739]
[1644718457692,1.27601554,2920.7,2920.6,13.30046167]
[1644718457896,1.27601554,2920.7,2920.6,10.60802739]
[1644718458297,1.27601554,2920.7,2920.6,13.30046167]
[1644718459597,1.27601554,2920.7,2920.6,14.15610167]
[1644718460810,1.27601554,2920.7,2920.6,14.1782388]
[1644718461001,1.27601554,2920.7,2920.6,11.48580452]
[1644718461203,1.27601554,2920.7,2920.6,14.1782388]
[1644718462751,1.27601554,2920.7,2920.6,11.48580452]
[1644718462952,1.27601554,2920.7,2920.6,14.1782388]
[1644718463152,1.27601554,2920.7,2920.6,11.48580452]
[1644718463552,1.27601554,2920.7,2920.6,14.1782388]
[1644718464652,1.27601554,2920.7,2920.6,14.3493388]
[1644718465296,1.27601554,2920.7,2920.6,14.32720167]
[1644718465695,1.27601554,2920.7,2920.6,11.63476739]
[1644718465895,1.27601554,2920.7,2920.6,14.32720167]
[1644718466301,1.27601554,2920.7,2920.6,11.63476739]
[1644718466495,1.27601554,2920.7,2920.6,14.32720167]
[1644718466696,1.27464175,2920.7,2920.6,14.32720167]
[1644718466897,1.27464175,2920.7,2920.6,11.63476739]
[1644718467097,1.27464175,2920.7,2920.6,10.77912739]
[1644718467298,1.27464175,2920.7,2920.6,9.74519129]
[1644718467696,1.27464175,2920.7,2920.6,9.57409129]
[1644718471047,1.27464175,2920.7,2920.6,9.27409129]
[1644718471246,1.27464175,2920.7,2920.6,3.16109129]
[1644718471457,1.27464175,2920.7,2920.6,2.16109129]
[1644718471953,1.27464175,2920.7,2920.2,0.17489797]
[1644718471954,4.05,2920.6,2920.2,0.17489797]
[1644718472149,1.15298771,2920.3,2919.9,0.00280668]
[1644718473102,5.2818,2920.6,2919.9,0.17489797]
[1644718474103,5.2818,2920.6,2920.1,0.00350493]
[1644718474300,6.31123111,2920.6,2920.1,0.00350493]
[1644718474501,1.2318,2920.6,2920.1,0.17559622]
[1644718474701,1.2318,2920.6,2920.1,0.6674029]
[1644718475101,1.2318,2920.6,2920.1,0.66389797]
[1644718475300,1.2318,2920.6,2920.2,0.00960171]
[1644718475500,1.2318,2920.6,2920.2,0.01240839]
[1644718475702,1.2318,2920.6,2920.2,0.18449968]
[1644718475904,0.0220498,2920.3,2920.2,0.18449968]
[1644718476448,0.0220498,2920.3,2920.2,0.17489797]
[1644718487158,0.0220498,2920.3,2920.2,0.00280668]
[1644718487356,0.0220498,2920.3,2919.7,7.48]
[1644718487357,0.0220498,2920.3,2920.1,0.00959242]
[1644718488208,0.93600651,2920.2,2920.1,0.00959242]
[1644718488405,0.93600651,2920.2,2919.5,0.00280668]
[1644718489405,0.93600651,2920.2,2919.5,0.17489797]
[1644718489609,0.93600651,2920.2,2919.6,0.00280668]
[1644718490012,0.93600651,2920.2,2919.6,0.17489797]
[1644718490207,0.93600651,2920.2,2919.6,0.17209129]
[1644718490406,0.93600651,2920.2,2919.7,0.00280668]
[1644718492156,0.93600651,2920.2,2919.8,0.01013712]
[1644718492960,3.55735704,2920.1,2919.8,0.01013712]
[1644718493160,3.72845704,2920.1,2919.3,0.00280668]
[1644718493359,3.72845704,2920.1,2919.9,0.01013705]
[1644718493557,3.61479973,2920.1,2919.9,0.01013705]
[1644718493759,3.60226666,2920.1,2919.9,0.01013705]
[1644718493958,0.1711,2920.1,2919.9,0.01013705]
[1644718494359,0.1711,2920.1,2919.3,0.00280668]
[1644718494557,2.12290651,2920.2,2919.9,0.01013705]
[1644718494959,2.12142205,2920.2,2919.9,0.01013705]
[1644718495603,2.12142205,2920.2,2919.3,0.00280668]
[1644718495604,0.91867318,2919.6,2919.3,0.00280668]
[1644718495805,3.77129888,2920.1,2919.9,0.01013698]
[1644718496004,1.1869,2920.2,2919.9,0.01013698]
[1644718496809,1.10764662,2919.7,2919.3,0.00280668]
[1644718497915,4.50764662,2919.7,2919.3,0.00280668]
[1644718498214,4.50764662,2919.7,2919.4,0.01013774]
[1644718499050,4.50764662,2919.7,2919.3,0.00280668]
[1644718499454,4.50764662,2919.7,2919.4,0.01013767]
[1644718500250,4.50764662,2919.7,2919.3,0.00280668]
[1644718500452,4.52941015,2919.7,2919.3,0.00280668]
[1644718500652,3.47779187,2919.6,2919.4,0.01013767]
[1644718501252,4.66079187,2919.6,2919.4,0.01013767]
[1644718501452,3.66130595,2919.5,2918.9,0.00280668]
[1644718502450,1.16488791,2919.1,2918.9,0.00280668]
[1644718503105,1.16488791,2919.1,2918.5,0.00280668]
[1644718503507,1.183,2919.6,2918.5,0.17489797]
[1644718503806,1.183,2919.6,2918.6,0.66389797]
[1644718504106,1.183,2919.6,2918.7,0.17489797]
[1644718504308,1.183,2919.6,2918.9,0.00403584]
[1644718505106,1.183,2919.6,2918.8,0.00280668]
[1644718505310,1.183,2919.6,2919.1,0.01013964]
[1644718505507,0.01231228,2919.4,2919.1,0.01013964]
[1644718506449,0.01231228,2919.4,2918.8,0.17390668]
[1644718506649,0.01231228,2919.4,2919.1,0.01013964]
[1644718507454,0.01231228,2919.4,2918.8,0.00280668]
[1644718507860,0.01231228,2919.4,2919.1,0.01013964]